bitfinex-derivatives/quotes_BTCF0:USTF0_20241203
["timestamp","ask_amount","ask_price","bid_price","bid_amount"]
[1733258421234,0.34412,95642.0,95641.0,0.008]
[1733258421427,0.396377,95642.0,95641.0,0.008]
[1733258421928,0.34412,95642.0,95641.0,0.008]
[1733258422331,0.48172,95642.0,95641.0,0.060257]
[1733258423430,0.1386,95642.0,95641.0,0.060257]
[1733258426137,0.1386,95642.0,95641.0,0.0897653]
[1733258427042,0.1386,95642.0,95641.0,0.008]
[1733258427043,0.190857,95642.0,95641.0,0.008]
[1733258427245,0.1386,95642.0,95627.0,0.0105]
[1733258427544,0.3608,95638.0,95629.0,0.03015976]
[1733258427844,0.1376,95637.0,95636.0,0.05226]
[1733258428036,0.3608,95638.0,95637.0,0.05226]
[1733258428238,0.4984,95638.0,95637.0,0.05226]
[1733258428441,0.4984,95638.0,95637.0,0.0523]
[1733258428943,0.4994,95638.0,95637.0,0.0523]
[1733258429348,0.4994,95638.0,95637.0,0.0583]
[1733258429642,0.4994,95638.0,95637.0,0.0613]
[1733258432139,0.1386,95638.0,95637.0,0.0613]
[1733258437743,0.11507116,95638.0,95637.0,0.0613]
[1733258445254,0.11507116,95638.0,95637.0,0.24768245]
[1733258445657,0.11507116,95638.0,95637.0,0.0613]
[1733258452859,0.09154176,95638.0,95637.0,0.0613]
[1733258453363,0.14237016,95638.0,95637.0,0.0613]
[1733258456560,0.0508284,95638.0,95637.0,0.0613]
[1733258456758,0.1896684,95638.0,95637.0,0.061299]
[1733258461065,0.18966823,95638.0,95637.0,0.061299]
[1733258461261,0.13884,95638.0,95637.0,0.061299]
[1733258464973,0.13884,95638.0,95637.0,0.31031073]
[1733258465171,0.13884,95638.0,95637.0,0.061299]
[1733258466464,0.13884,95638.0,95637.0,0.00904]
[1733258466675,0.13884,95638.0,95637.0,0.0613]
[1733258468370,0.18966843,95638.0,95637.0,0.0613]
[1733258468773,0.16613901,95638.0,95637.0,0.0613]
[1733258473371,0.16613901,95638.0,95637.0,0.19626965]
[1733258473678,0.27644102,95638.0,95619.0,0.31088518]
[1733258473868,0.413066,95627.0,95621.0,0.062769]
[1733258474067,0.70885318,95627.0,95626.0,0.00011004]
[1733258474274,0.65658718,95627.0,95626.0,0.00011004]
[1733258474678,0.65658718,95627.0,95626.0,0.05237604]
[1733258475483,0.57715658,95627.0,95626.0,0.00011004]
[1733258475683,0.54626843,95627.0,95626.0,0.00011004]
[1733258475869,0.73421146,95627.0,95626.0,0.00011004]
[1733258476074,0.73421135,95627.0,95626.0,0.00011004]
[1733258476375,0.54726843,95627.0,95626.0,0.00011004]
[1733258476577,0.54726843,95627.0,95626.0,0.05437604]
[1733258476766,0.41262843,95627.0,95626.0,0.05437604]
[1733258477080,0.54726843,95627.0,95626.0,0.05437604]
[1733258477282,0.65294753,95627.0,95626.0,0.05237604]
[1733258477671,0.49644,95627.0,95626.0,0.05237604]
[1733258477878,0.6529475,95627.0,95626.0,0.05237604]
[1733258478371,0.49644,95627.0,95626.0,0.05237604]
[1733258482287,0.548705,95627.0,95626.0,0.00011004]
[1733258482683,0.49644,95627.0,95626.0,0.00011004]
[1733258484679,0.49644,95627.0,95626.0,0.05237604]
[1733258485586,0.49644,95627.0,95626.0,0.00011004]
[1733258486982,0.48685523,95627.0,95626.0,0.05237604]
[1733258487282,0.0105,95632.0,95631.0,0.052263]
[1733258487478,0.14518,95637.0,95636.0,0.05226]
[1733258487685,0.13468,95637.0,95636.0,0.05226]
[1733258487880,0.0105,95644.0,95643.0,0.052256]
[1733258488087,0.0105,95644.0,95641.0,0.052257]
[1733258488088,0.13468,95644.0,95641.0,0.052257]
[1733258488294,0.13468,95644.0,95633.0,0.3608]
[1733258488295,0.14518,95644.0,95643.0,0.052296]
[1733258488486,0.09377988,95646.0,95645.0,0.052255]
[1733258488688,0.09377988,95648.0,95643.0,0.36084]
[1733258488891,0.0105,95649.0,95645.0,4e-05]
[1733258489088,0.0105,95649.0,95648.0,0.052254]
[1733258489289,0.10427988,95654.0,95653.0,0.052251]
[1733258489481,0.13468,95654.0,95653.0,0.052251]
[1733258489680,0.13468,95654.0,95653.0,0.052291]
[1733258492293,0.13568,95654.0,95653.0,0.052291]
[1733258494090,0.13568,95654.0,95653.0,0.08250402]
[1733258495193,0.22934041,95654.0,95653.0,0.08250402]
[1733258495386,0.13568,95654.0,95653.0,0.08250402]
[1733258496800,0.22928569,95654.0,95653.0,0.08250402]
[1733258496999,0.001,95654.0,95653.0,0.08250402]
[1733258497291,0.13564,95654.0,95653.0,0.08250402]
[1733258503194,0.13564,95654.0,95653.0,0.10341401]
[1733258503503,0.001,95654.0,95653.0,0.10341401]
[1733258503700,0.1356,95654.0,95653.0,0.10341401]
[1733258507295,0.1356,95654.0,95643.0,0.0026]
[1733258507491,0.3608,95644.0,95638.0,0.0026]
[1733258507691,0.3608,95644.0,95633.0,0.00416822]
[1733258507692,0.52992,95643.0,95633.0,0.00416822]
[1733258507990,0.052263,95628.0,95627.0,0.0026]
[1733258508299,0.052263,95628.0,95621.0,0.02090999]
[1733258508300,0.052263,95627.0,95621.0,0.02090999]
[1733258508494,0.62762965,95627.0,95621.0,0.02090999]
[1733258508900,0.62763022,95627.0,95621.0,0.02090999]
[1733258509093,0.69016368,95627.0,95621.0,0.02090999]
[1733258509300,0.534063,95627.0,95621.0,0.02090999]
[1733258509693,0.69116368,95627.0,95621.0,0.02090999]
[1733258509899,0.535063,95627.0,95621.0,0.02090999]
[1733258510498,0.535063,95627.0,95615.0,0.0026]
[1733258510700,0.3608,95616.0,95615.0,0.05227]
[1733258511001,0.8908,95616.0,95615.0,0.05227]
[1733258511206,0.943069,95616.0,95615.0,0.05227]
[1733258511505,0.943069,95616.0,95615.0,0.0523877]
[1733258511695,1.06782592,95616.0,95615.0,0.0523877]
[1733258511893,1.06782592,95616.0,95615.0,0.0001177]
[1733258512095,1.06782592,95616.0,95605.0,0.02090999]
[1733258512096,0.052273,95610.0,95606.0,0.052275]
[1733258512307,0.3608,95607.0,95606.0,0.052275]
[1733258512606,0.49544,95607.0,95606.0,0.052275]
[1733258512995,0.49444,95607.0,95606.0,0.052275]
[1733258513197,0.64028106,95607.0,95606.0,0.00012188]
[1733258513393,0.546714,95607.0,95606.0,0.00012188]
[1733258514601,0.547714,95607.0,95606.0,0.00012188]
[1733258514903,0.550714,95607.0,95606.0,0.00112188]
[1733258515500,0.552714,95607.0,95598.0,0.0026]
[1733258515800,0.552714,95607.0,95584.0,0.001]
[1733258515801,0.05228,95596.0,95595.0,0.00156897]
[1733258515996,0.18692,95596.0,95595.0,0.00156897]
[1733258516601,0.18692,95596.0,95595.0,0.00169122]
[1733258517305,0.052286,95585.0,95584.0,0.02092401]
[1733258517499,0.943206,95585.0,95584.0,0.02092401]
[1733258517903,0.052289,95580.0,95574.0,0.052292]
[1733258518296,0.052287,95584.0,95579.0,0.11204698]
[1733258518496,1.26278001,95585.0,95579.0,0.11204698]
[1733258518707,0.052287,95584.0,95583.0,4e-05]
[1733258519495,0.053287,95584.0,95583.0,4e-05]
[1733258521305,0.052289,95580.0,95579.0,7.728e-05]
[1733258522208,0.001,95584.0,95582.0,0.052288]
[1733258522407,0.13468,95583.0,95582.0,0.052288]
[1733258523305,1.12814001,95585.0,95584.0,0.052287]
[1733258523514,1.25176,95585.0,95584.0,0.052287]
[1733258523710,1.11708,95585.0,95584.0,0.052287]
[1733258524008,1.25176,95585.0,95584.0,0.052287]
[1733258524199,1.11708,95585.0,95584.0,0.052287]
[1733258524398,1.25176,95585.0,95584.0,0.052287]
[1733258524703,1.25176,95585.0,95579.0,0.02983936]
[1733258525007,1.11708,95585.0,95584.0,0.052287]
[1733258525211,1.25276,95585.0,95581.0,0.052288]
[1733258525514,1.25276,95585.0,95582.0,0.052288]
[1733258525701,1.25276,95585.0,95579.0,0.08212836]
[1733258526012,0.13468,95584.0,95580.0,0.052289]
[1733258526309,0.186967,95584.0,95579.0,7.728e-05]
[1733258526699,0.13468,95584.0,95579.0,0.05236628]
[1733258527508,0.186967,95584.0,95579.0,0.05236628]
[1733258527907,0.13468,95584.0,95579.0,0.05236628]
[1733258528205,0.13472,95583.0,95579.0,7.728e-05]
[1733258528413,0.13472,95583.0,95581.0,0.052288]
[1733258528910,0.001,95584.0,95583.0,0.052287]
[1733258529112,0.13572,95584.0,95583.0,0.052287]
[1733258529316,0.49652,95584.0,95583.0,0.052327]
[1733258530210,0.49652,95584.0,95583.0,4e-05]
[1733258530601,0.548807,95584.0,95583.0,4e-05]
[1733258530805,0.547807,95584.0,95583.0,4e-05]
[1733258531004,0.49552,95584.0,95583.0,4e-05]
[1733258531418,0.49652,95584.0,95583.0,4e-05]
[1733258531612,0.3618,95584.0,95583.0,4e-05]
[1733258531911,0.49652,95584.0,95583.0,0.052327]
[1733258532913,0.47297713,95584.0,95583.0,0.052327]
[1733258533106,0.47297713,95584.0,95583.0,4e-05]
[1733258533613,0.47425713,95584.0,95583.0,4e-05]
[1733258536715,0.44155759,95584.0,95583.0,0.052327]
[1733258537516,0.44155759,95584.0,95583.0,4e-05]
[1733258537721,0.44155759,95584.0,95583.0,0.052327]
[1733258538717,0.44155759,95584.0,95583.0,4e-05]
[1733258539312,0.44155759,95584.0,95583.0,0.052327]
[1733258539618,0.395778,95584.0,95583.0,0.052327]
[1733258541116,0.137,95584.0,95583.0,0.052327]
[1733258542421,0.4978,95584.0,95583.0,4e-05]
[1733258543014,0.4978,95584.0,95583.0,0.052327]
[1733258543818,0.3618,95584.0,95583.0,0.052327]
[1733258544115,0.4978,95584.0,95583.0,0.052327]
[1733258546716,0.46509946,95584.0,95583.0,0.052327]
[1733258548022,0.56577929,95584.0,95583.0,0.052327]
[1733258548524,0.56677929,95584.0,95583.0,0.052327]
[1733258549222,0.44255559,95584.0,95583.0,0.052327]
[1733258549627,0.44255559,95584.0,95583.0,4e-05]
[1733258550518,0.44255559,95584.0,95583.0,0.052327]
[1733258550724,0.53660523,95584.0,95583.0,0.30033022]
[1733258550924,0.53760523,95584.0,95583.0,0.30033022]
[1733258551121,0.53660523,95584.0,95583.0,0.30033022]
[1733258551627,0.44255559,95584.0,95583.0,0.30033022]
[1733258552231,0.44255559,95584.0,95583.0,0.052327]
[1733258553621,0.137,95584.0,95583.0,0.052327]
[1733258555428,0.137,95584.0,95583.0,0.413127]
[1733258555629,0.137,95584.0,95583.0,0.052327]
[1733258555829,0.23111575,95584.0,95583.0,0.052327]
[1733258556126,0.137,95584.0,95583.0,0.052327]
[1733258557026,0.10430181,95584.0,95583.0,0.052327]
[1733258558334,0.22970134,95584.0,95583.0,0.052327]
[1733258558633,0.59310181,95584.0,95583.0,0.052327]
[1733258561530,0.59310181,95584.0,95583.0,0.25053306]
[1733258562126,0.59310181,95584.0,95583.0,0.30282006]
[1733258562329,0.59310181,95584.0,95583.0,0.052327]
[1733258563136,0.59310181,95584.0,95581.0,0.02092745]
[1733258563447,0.18633555,95582.0,95563.0,0.31328082]
[1733258563634,0.7216,95565.0,95553.0,0.0052]
[1733258563836,0.7216,95565.0,95531.0,0.49514597]
[1733258563837,0.3608,95554.0,95546.0,0.052307]
[1733258564029,0.39367939,95553.0,95538.0,0.02981008]
[1733258564227,0.12536527,95539.0,95538.0,0.052312]
[1733258564437,0.10181281,95539.0,95538.0,0.052312]
[1733258564632,0.10181281,95539.0,95538.0,0.05238531]
[1733258564933,0.13472,95542.0,95541.0,0.05231]
[1733258565332,0.13472,95542.0,95541.0,0.05235]
[1733258567336,0.13572,95542.0,95541.0,0.05335]
[1733258567729,0.13672,95542.0,95541.0,0.05335]
[1733258570338,0.23052736,95542.0,95541.0,0.05335]
[1733258571238,0.13672,95542.0,95541.0,0.05335]
[1733258571440,0.23052736,95542.0,95541.0,0.05335]
[1733258571641,0.13672,95542.0,95541.0,0.05335]
[1733258572145,0.23050848,95542.0,95541.0,0.05335]
[1733258572336,0.13672,95542.0,95541.0,0.05335]
[1733258575436,0.13672,95542.0,95541.0,0.15801655]
[1733258575640,0.002,95542.0,95541.0,0.15801655]
[1733258575833,0.2417,95557.0,95556.0,0.052302]
[1733258576029,0.2417,95557.0,95556.0,0.413102]
[1733258576237,0.2417,95557.0,95556.0,0.413142]
[1733258576436,0.37646,95557.0,95556.0,0.413142]
[1733258576942,0.37746,95557.0,95556.0,0.414142]
[1733258577131,0.37746,95557.0,95556.0,0.053342]
[1733258577132,0.47124848,95557.0,95556.0,0.053342]
[1733258577329,0.37846,95557.0,95556.0,0.053342]
[1733258577536,0.37846,95557.0,95556.0,0.0836617]
[1733258577832,0.33744622,95557.0,95556.0,0.0836617]
[1733258578039,0.47220622,95557.0,95556.0,0.0313597]
[1733258578237,0.37846,95557.0,95556.0,0.0313597]
[1733258578646,0.47221031,95557.0,95556.0,0.0313597]
[1733258578843,0.83301031,95557.0,95556.0,0.0313597]
[1733258579040,0.73926,95557.0,95556.0,0.00104]
[1733258580638,0.791561,95557.0,95556.0,0.00104]
[1733258580940,0.052306,95548.0,95545.0,0.08247865]
[1733258581140,0.3608,95546.0,95538.0,0.02100734]
[1733258581340,0.3608,95546.0,95545.0,0.052308]
[1733258581547,0.51706415,95546.0,95545.0,0.052308]
[1733258582246,0.51806415,95546.0,95545.0,0.054308]
[1733258582945,0.51906415,95546.0,95545.0,0.054308]
[1733258583642,0.57135423,95546.0,95545.0,0.054308]
[1733258583846,0.3618,95546.0,95545.0,0.002]
[1733258584147,0.41368257,95546.0,95538.0,7.331e-05]
[1733258584345,0.052311,95539.0,95538.0,7.331e-05]
[1733258584644,0.34332519,95539.0,95538.0,7.331e-05]
[1733258584945,0.53141419,95539.0,95538.0,0.05238531]
[1733258585545,0.53241419,95539.0,95538.0,0.05238531]
[1733258586342,0.37616,95539.0,95538.0,0.05238531]
[1733258587344,0.53241419,95539.0,95538.0,0.05238531]
[1733258587545,0.37616,95539.0,95538.0,0.05238531]
[1733258588049,0.53341419,95539.0,95538.0,0.05238531]
[1733258588251,0.53341419,95539.0,95538.0,7.331e-05]
[1733258588252,0.29328639,95539.0,95538.0,7.331e-05]
[1733258588543,0.42804639,95539.0,95538.0,7.331e-05]
[1733258588746,0.48035739,95539.0,95538.0,7.331e-05]
[1733258588949,0.58576355,95539.0,95538.0,7.331e-05]
[1733258589251,0.429471,95539.0,95538.0,7.331e-05]
[1733258589452,0.58580198,95539.0,95538.0,7.331e-05]
[1733258590247,0.48035926,95539.0,95538.0,7.331e-05]
[1733258590641,0.61603607,95539.0,95538.0,7.331e-05]
[1733258590836,0.45967333,95539.0,95538.0,7.331e-05]
[1733258591244,0.61603607,95539.0,95538.0,7.331e-05]
[1733258591644,0.45967333,95539.0,95538.0,7.331e-05]
[1733258591846,0.37716,95539.0,95538.0,0.05238531]
[1733258593248,0.42804447,95539.0,95538.0,0.05238531]
[1733258593446,0.29328447,95539.0,95538.0,0.05238531]
[1733258593648,0.42804447,95539.0,95538.0,0.05238531]
[1733258594657,0.29328447,95539.0,95538.0,0.05238531]
[1733258594841,0.42804447,95539.0,95538.0,0.05238531]
[1733258595449,0.29328447,95539.0,95538.0,0.05238531]
[1733258595846,0.18764324,95539.0,95538.0,0.05238531]
[1733258597363,0.18764324,95539.0,95538.0,7.331e-05]
[1733258597853,0.32512084,95539.0,95538.0,7.331e-05]
[1733258598054,0.18764324,95539.0,95538.0,7.331e-05]
[1733258598848,0.18764324,95539.0,95538.0,0.05238531]
[1733258599048,0.37551911,95539.0,95538.0,0.05238531]
[1733258599249,0.37551621,95539.0,95538.0,0.05238531]
[1733258599545,0.18764324,95539.0,95538.0,0.05238531]
[1733258600851,0.05288324,95539.0,95538.0,0.05238531]
[1733258601051,0.18764324,95539.0,95538.0,0.05238531]
[1733258601356,0.05288324,95539.0,95538.0,0.05238531]
[1733258601557,0.13476,95541.0,95538.0,0.10474315]
[1733258601857,0.13476,95541.0,95540.0,0.052351]
[1733258602445,0.10486814,95541.0,95540.0,0.052351]
[1733258602659,0.59417297,95548.0,95540.0,0.052351]
[1733258602660,0.18787297,95544.0,95540.0,0.052351]
[1733258602847,0.13476,95543.0,95540.0,0.052351]
[1733258603045,0.001,95541.0,95540.0,0.052311]
[1733258603445,0.13476,95543.0,95540.0,0.052311]
[1733258603658,0.18787297,95544.0,95540.0,0.052311]
[1733258603659,0.001,95541.0,95540.0,0.052311]
[1733258604354,0.002,95541.0,95540.0,0.052311]
[1733258604666,0.001,95541.0,95540.0,0.052311]
[1733258604957,0.13476,95542.0,95541.0,0.052311]
[1733258605258,0.13476,95542.0,95541.0,0.052351]
[1733258607263,0.29237173,95542.0,95541.0,0.052351]
[1733258607451,0.29337173,95542.0,95541.0,0.052351]
[1733258607758,0.13676,95542.0,95541.0,0.052351]
[1733258608362,0.29337173,95542.0,95541.0,0.052351]
[1733258608866,0.13676,95542.0,95541.0,0.052351]
[1733258609053,0.29337173,95542.0,95541.0,0.052351]
[1733258609359,0.29337173,95542.0,95541.0,0.413151]
[1733258609360,0.13676,95542.0,95541.0,0.413151]
[1733258609551,0.13676,95542.0,95541.0,0.052351]
[1733258609765,0.29337173,95542.0,95541.0,0.052351]
[1733258610059,0.13676,95542.0,95541.0,0.052351]
[1733258610264,0.29353151,95542.0,95541.0,0.052351]
[1733258610455,0.13676,95542.0,95541.0,0.052351]
[1733258611264,0.18907,95542.0,95541.0,4e-05]
[1733258611454,0.33796274,95542.0,95541.0,4e-05]
[1733258613161,0.33796274,95542.0,95538.0,7.331e-05]
[1733258613361,0.052312,95539.0,95538.0,7.331e-05]
[1733258613675,0.20120474,95539.0,95538.0,7.331e-05]
[1733258614856,0.32202628,95539.0,95525.0,0.04053859]
[1733258615062,0.3608,95530.0,95529.0,0.052317]
[1733258615262,0.64445274,95530.0,95529.0,0.052317]
[1733258615961,0.49556,95530.0,95529.0,0.05240351]
[1733258616666,0.54644718,95530.0,95529.0,0.05240351]
[1733258616858,0.54744718,95530.0,95529.0,0.05240351]
[1733258617458,0.54844718,95530.0,95529.0,0.05240351]
[1733258618561,0.54844718,95530.0,95529.0,8.651e-05]
[1733258618864,0.49756,95530.0,95529.0,8.651e-05]
[1733258619861,0.49756,95530.0,95529.0,0.05240351]
[1733258623066,0.13676,95530.0,95529.0,0.05240351]
[1733258627273,0.002,95530.0,95529.0,0.05240351]
[1733258627470,0.13672,95530.0,95529.0,0.05240351]
[1733258629860,0.13672,95530.0,95529.0,0.41320351]
[1733258630162,0.13472,95531.0,95530.0,0.052317]
[1733258630554,0.13472,95531.0,95530.0,0.15703561]
[1733258632867,0.13572,95531.0,95530.0,0.15803561]
[1733258633167,0.13672,95531.0,95530.0,0.15803561]
[1733258633473,0.11316564,95531.0,95530.0,0.15803561]
[1733258635465,0.26989891,95531.0,95530.0,0.15803561]
[1733258635665,0.18760346,95531.0,95530.0,0.15803561]
[1733258636668,0.18760346,95531.0,95530.0,0.053357]
[1733258638966,0.37568338,95531.0,95530.0,0.053357]
[1733258639760,0.18660346,95531.0,95530.0,0.052357]
[1733258639960,0.18660346,95531.0,95530.0,0.07429522]
[1733258640365,0.186605,95531.0,95530.0,0.07429522]
[1733258644672,0.18660271,95531.0,95530.0,0.07429522]
[1733258644872,0.13572,95531.0,95530.0,0.07429522]
[1733258645375,0.18660327,95531.0,95530.0,0.07429522]
[1733258646978,0.13572,95531.0,95530.0,0.07429522]
[1733258650076,0.18660504,95531.0,95530.0,0.07429522]
[1733258650270,0.29259368,95531.0,95530.0,0.07429522]
[1733258651485,0.18660595,95531.0,95530.0,0.07429522]
[1733258652478,0.13572,95531.0,95530.0,0.02197822]
[1733258652677,0.1866049,95531.0,95530.0,0.02197822]
[1733258653381,0.32397981,95531.0,95530.0,0.02197822]
[1733258653575,0.1866049,95531.0,95530.0,0.02197822]
[1733258653779,0.32398128,95531.0,95530.0,0.02197822]
[1733258654085,0.37486618,95531.0,95530.0,0.07429522]
[1733258656088,0.32919705,95531.0,95530.0,0.07429522]
[1733258656285,0.32919705,95531.0,95530.0,0.02197822]
[1733258656584,0.32915705,95531.0,95530.0,0.02197822]
[1733258656783,0.32915705,95531.0,95530.0,0.07429522]
[1733258657783,0.32815705,95531.0,95530.0,0.07429522]
[1733258658381,0.32815705,95531.0,95530.0,0.07329522]
[1733258659980,0.19347705,95531.0,95530.0,0.07329522]
[1733258660280,0.19347705,95531.0,95530.0,0.43409522]
[1733258660281,0.0508849,95531.0,95530.0,0.43409522]
[1733258660579,0.0508849,95531.0,95530.0,0.48645683]
[1733258660580,0.05088419,95531.0,95530.0,0.48645683]
[1733258660780,0.23910693,95532.0,95531.0,0.052316]
[1733258660983,0.05088361,95532.0,95531.0,0.052316]
[1733258661181,0.18822513,95532.0,95531.0,4e-05]
[1733258661392,0.18822513,95532.0,95531.0,0.052356]
[1733258661688,0.23910874,95532.0,95531.0,0.052356]
[1733258661890,0.05188361,95532.0,95531.0,0.052356]
[1733258662581,0.18656361,95532.0,95531.0,0.052356]
[1733258663786,0.18756361,95532.0,95531.0,0.052356]
[1733258664093,0.18756361,95532.0,95531.0,0.053356]
[1733258664094,0.05188361,95532.0,95531.0,0.053356]
[1733258665584,9.018e-05,95549.0,95531.0,0.053356]
[1733258665585,0.21946826,95560.0,95531.0,0.24039751]
[1733258665795,0.3139583,95580.0,95559.0,0.3608]
[1733258666112,0.3139583,95580.0,95579.0,4e-05]
[1733258666289,0.238,95580.0,95579.0,4e-05]
[1733258666487,0.42497,95580.0,95579.0,4e-05]
[1733258666690,0.42504642,95580.0,95579.0,4e-05]
[1733258667083,0.68075642,95580.0,95566.0,0.0105]
[1733258667288,0.3608,95573.0,95561.0,0.052301]
[1733258667485,0.0759583,95571.0,95559.0,0.3608]
[1733258667793,0.12521112,95561.0,95560.0,0.052302]
[1733258668087,0.13468,95561.0,95560.0,0.052302]
[1733258668480,0.22854645,95561.0,95560.0,0.052302]
[1733258669094,0.12521112,95565.0,95560.0,0.052302]
[1733258669292,0.2598274,95566.0,95565.0,0.052299]
[1733258669589,0.13468,95566.0,95565.0,0.052299]
[1733258670484,0.1251474,95568.0,95564.0,4e-05]
[1733258670781,0.09379838,95569.0,95568.0,0.052297]
[1733258671185,0.13468,95577.0,95576.0,0.052293]
[1733258671384,0.23807642,95580.0,95568.0,0.052337]
[1733258671593,0.13468,95577.0,95576.0,0.052333]
[1733258671793,0.13468,95577.0,95576.0,0.052293]
[1733258672800,0.14368,95577.0,95576.0,0.053293]
[1733258673094,0.14364,95577.0,95576.0,0.053293]
[1733258674278,0.15064,95577.0,95576.0,0.053293]
[1733258676684,0.15064,95577.0,95576.0,0.001]
[1733258676890,0.33375423,95577.0,95576.0,0.00018382]
[1733258677491,0.202932,95577.0,95576.0,0.00018382]
[1733258680899,0.202932,95577.0,95576.0,0.05247682]
[1733258681302,0.15064,95577.0,95576.0,0.05247682]
[1733258686092,0.20150742,95577.0,95576.0,0.05247682]
[1733258686294,0.25379942,95577.0,95576.0,0.05247682]
[1733258686494,0.44118825,95577.0,95576.0,0.05247682]
[1733258686890,0.25379942,95577.0,95576.0,0.05247682]
[1733258687393,0.44118825,95577.0,95576.0,0.05247682]
[1733258688500,0.25379942,95577.0,95576.0,0.05247682]
[1733258691399,0.38494232,95577.0,95576.0,0.05247682]
[1733258692993,0.38494232,95577.0,95576.0,0.00018382]
[1733258694094,0.25379942,95577.0,95576.0,0.00018382]
[1733258694297,0.38531168,95577.0,95576.0,0.00018382]
[1733258694497,0.38531168,95577.0,95576.0,0.05247682]
[1733258694907,0.38531709,95577.0,95576.0,0.05247682]
[1733258696307,0.53819953,95577.0,95576.0,0.05247682]
[1733258696504,0.38531709,95577.0,95576.0,0.05247682]
[1733258696706,0.53821014,95577.0,95576.0,0.05247682]
[1733258696905,0.38531709,95577.0,95576.0,0.05247682]
[1733258697508,0.19838509,95577.0,95576.0,0.05247682]
[1733258697709,0.33298509,95577.0,95576.0,0.05247682]
[1733258699205,0.25375985,95577.0,95576.0,0.05247682]
[1733258699803,0.25375951,95577.0,95576.0,0.05247682]
[1733258700411,0.25375951,95577.0,95576.0,0.00018382]
[1733258701308,0.25375951,95577.0,95576.0,0.05247682]
[1733258701502,0.38541201,95577.0,95576.0,0.05247682]
[1733258702103,0.33312001,95577.0,95576.0,0.05247682]
[1733258702710,0.06686751,95577.0,95576.0,0.05247682]
[1733258702915,0.20146751,95577.0,95576.0,0.05247682]
[1733258703617,0.3331385,95577.0,95576.0,0.05247682]
[1733258704005,0.1985385,95577.0,95576.0,0.05247682]
[1733258704332,0.7462305,95577.0,95576.0,0.00018382]
[1733258704618,0.9961305,95577.0,95576.0,0.00018382]
[1733258705605,1.14879123,95577.0,95576.0,0.00018382]
[1733258705806,0.9961305,95577.0,95576.0,0.00018382]
[1733258706007,1.14879139,95577.0,95566.0,0.0026]
[1733258706313,0.052299,95565.0,95564.0,4e-05]
[1733258706515,0.186899,95565.0,95564.0,4e-05]
[1733258706716,0.3694375,95565.0,95564.0,4e-05]
[1733258707810,0.37329256,95565.0,95564.0,4e-05]
[1733258708513,0.052304,95555.0,95554.0,0.0026]
[1733258708715,0.052304,95555.0,95535.0,0.67376955]
[1733258708716,0.052309,95547.0,95546.0,0.18938674]
[1733258708914,0.59858306,95547.0,95546.0,0.00156984]
[1733258709110,0.78680778,95547.0,95546.0,0.00156984]
[1733258709307,0.59858165,95547.0,95546.0,0.05387884]
[1733258709521,0.78675423,95547.0,95546.0,0.05387884]
[1733258709915,0.78775423,95547.0,95546.0,0.00656984]
[1733258710110,0.73120331,95547.0,95546.0,0.00656984]
[1733258710316,0.73120331,95547.0,95546.0,0.006]
[1733258711323,0.73120331,95547.0,95537.0,0.0026]
[1733258711324,0.052313,95538.0,95537.0,0.0026]
[1733258711615,0.052314,95536.0,95535.0,0.3608]
[1733258711823,0.10318665,95536.0,95535.0,0.3608]
[1733258713018,0.23879767,95536.0,95535.0,0.3608]
[1733258713322,0.23879767,95536.0,95535.0,0.413114]
[1733258713323,0.1346,95536.0,95535.0,0.413114]
[1733258713622,0.18547265,95536.0,95535.0,0.413114]
[1733258713923,0.1356,95536.0,95535.0,0.414114]
[1733258714119,0.1356,95536.0,95535.0,0.3618]
[1733258714420,0.18648333,95536.0,95535.0,0.001]
[1733258714823,0.29211944,95536.0,95535.0,0.001]
[1733258715023,0.1864833,95536.0,95535.0,0.001]
[1733258715524,0.1356,95536.0,95535.0,0.001]
[1733258716017,0.1356,95536.0,95535.0,0.053314]
[1733258716218,0.1356,95536.0,95535.0,0.054314]
[1733258716416,0.1356,95536.0,95535.0,0.002]
[1733258716620,0.187915,95536.0,95535.0,0.002]
[1733258719424,0.21806004,95536.0,95535.0,0.002]
[1733258722622,0.187915,95536.0,95535.0,0.002]
[1733258723635,0.14713545,95536.0,95535.0,0.002]
[1733258723827,0.28173545,95536.0,95535.0,0.002]
[1733258724329,0.187915,95536.0,95535.0,0.002]
[1733258729430,0.001,95536.0,95535.0,0.002]
[1733258729622,0.1356,95536.0,95535.0,0.054315]
[1733258731033,0.1356,95536.0,95535.0,0.08514078]
[1733258731634,0.001,95536.0,95535.0,0.08514078]
[1733258731936,0.1346,95542.0,95541.0,0.052312]
[1733258732129,0.1346,95542.0,95541.0,0.413112]
[1733258732431,0.1346,95542.0,95541.0,0.413152]
[1733258732733,0.09646083,95550.0,95549.0,0.052307]
[1733258732923,0.09646083,95550.0,95549.0,0.3608]
[1733258732924,0.1346,95550.0,95549.0,0.3608]
[1733258733127,0.22846083,95550.0,95549.0,0.36084]
[1733258733329,0.22846083,95550.0,95549.0,4e-05]
[1733258733330,0.1346,95550.0,95549.0,4e-05]
[1733258734125,0.1346,95550.0,95549.0,0.00104]
[1733258734623,0.186907,95550.0,95549.0,0.00104]
[1733258734830,0.59858777,95550.0,95549.0,0.00104]
[1733258736427,0.052314,95537.0,95536.0,0.0026]
[1733258736631,0.4954,95537.0,95527.0,0.0026]
[1733258736831,0.1776572,95530.0,95527.0,0.0026]
[1733258737039,0.1776572,95530.0,95524.0,0.07325771]
[1733258737040,0.052318,95530.0,95524.0,0.07325771]
[1733258737230,0.052318,95530.0,95525.0,0.03041247]
[1733258737623,0.20898992,95530.0,95525.0,0.03041247]
[1733258738023,0.20903699,95530.0,95520.0,0.0026]
[1733258738232,0.10320798,95530.0,95520.0,0.0026]
[1733258738424,0.10420798,95530.0,95529.0,0.00108651]
[1733258739434,0.23539825,95530.0,95529.0,0.00208651]
[1733258740434,0.23540258,95530.0,95529.0,0.00208651]
[1733258740634,0.23540503,95530.0,95529.0,0.00208651]
[1733258741044,0.23540503,95530.0,95529.0,0.00108651]
[1733258741045,0.10321011,95530.0,95529.0,0.00108651]
[1733258741234,0.2364016,95530.0,95529.0,0.00108651]
[1733258741737,0.1840836,95530.0,95529.0,0.05340451]
[1733258741936,0.1840836,95530.0,95529.0,0.00108651]
[1733258742736,0.10421011,95530.0,95529.0,0.00108651]